fUST/lending_fUST_20241230
["ID","MTS","AMOUNT","RATE_DAILY","PERIOD"]
[347096664,1735495832302,-302.54622906,0.0001938,2]
[347096665,1735495832311,-107.55268275,0.00019382,2]
[347096666,1735495832323,-85.67757625,0.00019382,2]
[347096667,1735495832333,-541.16042375,0.00019539,2]
[347096668,1735495832349,-527.70534329,0.00019539,2]
[347096669,1735495832360,-759.7105542,0.00019539,2]
[347096670,1735495832372,-834.45753381,0.00019539,2]
[347096674,1735495838239,-544.33194006,0.00019538,2]
[347096675,1735495838250,-307.6558613,0.00019538,2]
[347096676,1735495838260,-2583.96786701,0.00019539,2]
[347096677,1735495838270,-5000.0,0.00019539,2]
[347096678,1735495838279,-5000.0,0.00019539,2]
[347096679,1735495838288,-5000.0,0.00019539,2]
[347096680,1735495838298,-302.66706629,0.0001957,2]
[347096681,1735495838308,-597.484,0.0001983,2]
[347096682,1735495838318,-166.369,0.0002,2]
[347096683,1735495838327,-300.0,0.0002,8]
[347096684,1735495838337,-600.0,0.00020076,2]
[347096685,1735495838347,-2253.9504971,0.000201,3]
[347096686,1735495838357,-1707.93679386,0.000201,3]
[347096687,1735495838366,-1707.93579389,0.000201,3]
[347096688,1735495838376,-1200.0,0.00020223,2]
[347096689,1735495838386,-292.009,0.00020223,2]
[347096690,1735495838395,-6598.22576368,0.00020231,2]
[347096691,1735495838405,-755.00809927,0.00020285,2]
[347096692,1735495838414,-400.0,0.00020447,2]
[347096693,1735495838423,-6598.22576368,0.00020517,2]
[347096694,1735495838433,-167.79707,0.00020521,2]
[347096695,1735495838442,-163.6744675,0.00020655,2]
[347096696,1735495838452,-367.1613313,0.00020656,2]
[347096697,1735495838461,-10310.54764679,0.00020661,2]
[347096698,1735495838471,-163.6744675,0.0002068,2]
[347096699,1735495838480,-163.6744675,0.00020705,2]
[347096700,1735495838489,-163.6744675,0.0002073,2]
[347096702,1735495838498,-242.70166236,0.00020754,2]
[347096704,1735495838508,-5138.11336074,0.00020755,3]
[347096705,1735495838517,-1445.00151466,0.00020755,7]
[347096706,1735495838526,-1445.00151466,0.00020755,7]
[347096707,1735495838536,-1445.00151466,0.00020755,7]
[347096708,1735495838545,-1445.00151466,0.00020755,7]
[347096709,1735495838555,-1445.00151466,0.00020755,7]
[347096710,1735495838564,-1445.00151466,0.00020755,7]
[347096711,1735495838573,-1445.00151466,0.00020755,7]
[347096712,1735495838582,-1445.00151466,0.00020755,7]
[347096713,1735495838592,-1445.00151466,0.00020755,7]
[347096714,1735495838600,-1445.00151466,0.00020755,7]
[347096715,1735495838609,-1445.00151466,0.00020755,7]
[347096716,1735495838619,-1445.00151466,0.00020755,7]
[347096717,1735495838628,-1445.00151466,0.00020755,7]
[347096718,1735495838637,-1445.00151466,0.00020755,7]
[347096719,1735495838646,-1445.00151466,0.00020755,7]
[347096720,1735495838656,-1445.00151466,0.00020755,7]
[347096721,1735495838665,-1445.00151466,0.00020755,7]
[347096722,1735495838673,-1445.00151466,0.00020755,7]
[347096723,1735495838683,-1445.00151466,0.00020755,7]
[347096724,1735495838692,-1445.0,0.00020755,7]
[347096725,1735495838701,-2167.50227199,0.00020755,7]
[347096726,1735495838710,-2167.50227199,0.00020755,7]
[347096727,1735495838719,-2167.50227199,0.00020755,7]
[347096728,1735495838728,-2167.50227199,0.00020755,7]
[347096729,1735495838737,-2167.50227199,0.00020755,7]
[347096730,1735495838746,-2167.50227199,0.00020755,7]
[347096731,1735495838758,-2167.50227199,0.00020755,7]
[347096732,1735495838767,-2167.50227199,0.00020755,7]
[347096733,1735495838776,-2167.50227199,0.00020755,7]
[347096734,1735495838785,-2167.50227199,0.00020755,7]
[347096735,1735495838795,-2167.50227199,0.00020755,7]
[347096736,1735495838803,-2167.50227199,0.00020755,7]
[347096737,1735495838813,-2167.50227199,0.00020755,7]
[347096738,1735495838821,-2167.50227199,0.00020755,7]
[347096739,1735495838830,-2167.50227199,0.00020755,7]
[347096740,1735495838839,-2167.50227199,0.00020755,7]
[347096741,1735495838848,-2167.50227199,0.00020755,7]
[347096742,1735495838857,-2167.50227199,0.00020755,7]
[347096743,1735495838866,-2167.50227199,0.00020755,7]
[347096744,1735495838874,-2167.5,0.00020755,7]
[347096745,1735495838883,-738.87832527,0.00020755,7]
[347096746,1735495838892,-738.87832527,0.00020755,7]
[347096747,1735495838901,-738.87832527,0.00020755,7]
[347096748,1735495838910,-738.87832527,0.00020755,7]
[347096749,1735495839016,-738.87832527,0.00020755,7]
[347096750,1735495839030,-738.87832527,0.00020755,7]
[347096751,1735495839040,-738.87832527,0.00020755,7]
[347096752,1735495839050,-738.87832527,0.00020755,7]
[347096753,1735495839060,-738.87832527,0.00020755,7]
[347096754,1735495839070,-738.87832527,0.00020755,7]
[347096755,1735495839080,-738.87832527,0.00020755,7]
[347096756,1735495839089,-738.87832527,0.00020755,7]
[347096757,1735495839099,-738.87832527,0.00020755,7]
[347096758,1735495839109,-738.87832527,0.00020755,7]
[347096759,1735495839118,-738.87832527,0.00020755,7]
[347096760,1735495839128,-738.87832527,0.00020755,7]
[347096761,1735495839138,-738.87832527,0.00020755,7]
[347096762,1735495839147,-738.87832527,0.00020755,7]
[347096763,1735495839157,-738.87832527,0.00020755,7]
[347096764,1735495839166,-738.87,0.00020755,7]
[347096765,1735495839176,-1108.31748791,0.00020755,7]
[347096766,1735495839185,-1108.31748791,0.00020755,7]
[347096767,1735495839195,-1108.31748791,0.00020755,7]
[347096768,1735495839204,-1108.31748791,0.00020755,7]
[347096769,1735495839214,-1108.31748791,0.00020755,7]
[347096770,1735495839223,-1108.31748791,0.00020755,7]
[347096771,1735495839232,-1108.31748791,0.00020755,7]
[347096772,1735495839242,-1108.31748791,0.00020755,7]
[347096773,1735495839252,-1108.31748791,0.00020755,7]
[347096774,1735495839261,-1108.31748791,0.00020755,7]
[347096775,1735495839272,-1108.31748791,0.00020755,7]
[347096776,1735495839281,-1108.31748791,0.00020755,7]
[347096777,1735495839291,-1108.31748791,0.00020755,7]
[347096778,1735495839300,-1108.31748791,0.00020755,7]
[347096779,1735495839310,-1108.31748791,0.00020755,7]
[347096780,1735495839319,-1108.31748791,0.00020755,7]
[347096781,1735495839328,-1108.31748791,0.00020755,7]
[347096782,1735495839337,-1108.31748791,0.00020755,7]
[347096783,1735495839347,-1108.31748791,0.00020755,7]
[347096784,1735495839356,-1108.31,0.00020755,7]
[347096785,1735495839366,-231.47,0.00020755,7]
[347096786,1735495839375,-173.60343847,0.00020755,7]
[347096787,1735495839384,-173.6,0.00020755,7]
[347096788,1735495839393,-163.96468302,0.00020755,2]
[347096789,1735495839402,-163.6744675,0.00020755,2]
[347096790,1735495839411,-172.058,0.00020756,2]
[347096791,1735495839422,-238.0,0.000208,3]
[347096792,1735495839431,-2000.0,0.000208,2]
[347096793,1735495839440,-2000.0,0.000208,2]
[347096794,1735495839450,-499.0,0.00020854,2]
[347096795,1735495839459,-746.63654898,0.00020854,2]
[347096796,1735495839468,-19982.3361775,0.00020854,2]
[347096797,1735495839478,-429527.86229717,0.00020855,10]
[347096798,1735495839492,-10685.88185821,0.00020855,10]
[347096799,1735495839505,-2777.51089025,0.00020855,10]
[347096800,1735495839516,-3362.50000003,0.00020855,10]
[347096801,1735495839528,-8960.3818514,0.00020855,10]
[347097169,1735495843463,-326636.1945227,0.00020855,10]
[347098122,1735496046843,500.0,0.00020854,120]
[347098131,1735496906912,5459.35309205,0.0001,2]
[347098191,1735497032412,-254.09,0.00013427,2]
[347098193,1735497032421,-254.09,0.000137,2]
[347098195,1735497032431,-400.0,0.00013973,2]
[347098197,1735497032441,-394.0,0.00016413,2]
[347098199,1735497032450,-1740.04296945,0.000189,2]
[347098201,1735497032459,-302.54622906,0.00019,2]
[347098203,1735497032469,-188.246027,0.00019031,2]
[347098205,1735497032479,-302.54622906,0.0001919,2]
[347098207,1735497032488,-302.54622906,0.0001938,2]
[347098209,1735497032497,-5164.75756255,0.00019411,2]
[347098211,1735497032506,-394.0,0.00019413,2]
[347098212,1735497032516,-302.54622906,0.0001957,2]
[347098214,1735497032526,-302.54622906,0.0001976,2]
[347098216,1735497032536,-572.362,0.0001983,2]
[347098218,1735497032545,-303.18078752,0.0001995,4]
[347098220,1735497032554,-355.0,0.0002,8]
[347098222,1735497032564,-600.0,0.0002003,2]
[347098224,1735497032574,-2028.55534739,0.00020102,3]
[347098226,1735497032583,-3415.87358775,0.00020102,3]
[347098228,1735497032592,-3961.88629099,0.00020102,3]
[347098230,1735497032601,-292.009,0.00020203,2]
[347098232,1735497032610,-1200.0,0.00020203,2]
[347098234,1735497032619,-4124.28162415,0.0002021,2]
[347098236,1735497032629,-755.00809927,0.00020239,2]
[347098238,1735497032639,-6598.22576368,0.00020351,2]
[347098240,1735497032648,-400.0,0.00020447,2]
[347098242,1735497032658,-167.79707,0.00020521,2]
[347098244,1735497032667,-6598.22576368,0.00020568,2]
[347098246,1735497032676,-367.1613313,0.00020656,2]
[347098249,1735497032686,-10310.54764679,0.00020661,2]
[347098250,1735497032696,-163.6744675,0.00020671,2]
[347098251,1735497032705,-163.6744675,0.00020696,2]
[347098253,1735497032714,-163.6744675,0.00020721,2]
[347098255,1735497032724,-163.6744675,0.00020746,2]
[347098257,1735497032733,-593.86344098,0.0002075,7]
[347098259,1735497032743,-172.058,0.00020754,2]
[347098261,1735497032752,-5164.75756255,0.00020755,3]
[347098263,1735497032762,-5164.75756255,0.00020755,3]
[347098265,1735497032771,-390.70823022,0.00020755,3]
[347098335,1735497038311,-1768.0,0.00013427,2]
[347098337,1735497038320,-649.235055,0.00020755,3]
[347098340,1735497038331,-2954.09796109,0.00020755,3]
[347098347,1735497038390,-1170.71631624,0.00020755,3]
[347098349,1735497038399,-1200.0,0.00020755,2]
[347098351,1735497038408,-242.70166236,0.0002077,2]
[347098353,1735497038418,-32545.41385628,0.00020771,3]
[347098355,1735497038427,-1445.00151466,0.00020771,7]
[347098357,1735497038439,-1445.00151466,0.00020771,7]
[347098359,1735497038448,-1445.00151466,0.00020771,7]
[347098361,1735497038457,-1445.00151466,0.00020771,7]
[347098363,1735497038466,-1445.00151466,0.00020771,7]
[347098365,1735497038476,-1445.00151466,0.00020771,7]
[347098367,1735497038485,-1445.00151466,0.00020771,7]
[347098369,1735497038494,-1445.00151466,0.00020771,7]
[347098371,1735497038503,-1445.00151466,0.00020771,7]
[347098373,1735497038513,-1445.00151466,0.00020771,7]
[347098375,1735497038523,-1445.00151466,0.00020771,7]
[347098377,1735497038532,-1445.00151466,0.00020771,7]
[347098379,1735497038542,-1445.00151466,0.00020771,7]
[347098381,1735497038551,-1445.00151466,0.00020771,7]
[347098383,1735497038560,-1445.00151466,0.00020771,7]
[347098385,1735497038569,-1445.00151466,0.00020771,7]
[347098387,1735497038579,-1445.00151466,0.00020771,7]
[347098389,1735497038588,-1445.00151466,0.00020771,7]
[347098391,1735497038597,-1445.00151466,0.00020771,7]
[347098393,1735497038607,-1445.0,0.00020771,7]
[347098395,1735497038616,-2167.50227199,0.00020771,7]
[347098397,1735497038625,-2167.50227199,0.00020771,7]
[347098399,1735497038634,-2167.50227199,0.00020771,7]
[347098401,1735497038644,-2167.50227199,0.00020771,7]
[347098403,1735497038653,-2167.50227199,0.00020771,7]
[347098405,1735497038663,-2167.50227199,0.00020771,7]
[347098407,1735497038672,-2167.50227199,0.00020771,7]
[347098409,1735497038682,-2167.50227199,0.00020771,7]
[347098411,1735497038692,-2167.50227199,0.00020771,7]
[347098413,1735497038701,-2167.50227199,0.00020771,7]
[347098415,1735497038711,-2167.50227199,0.00020771,7]
[347098418,1735497038720,-2167.50227199,0.00020771,7]
[347098420,1735497038730,-2167.50227199,0.00020771,7]
[347098422,1735497038740,-2167.50227199,0.00020771,7]
[347098423,1735497038750,-2167.50227199,0.00020771,7]
[347098426,1735497038759,-2167.50227199,0.00020771,7]
[347098428,1735497038769,-2167.50227199,0.00020771,7]
[347098430,1735497038778,-2167.50227199,0.00020771,7]
[347098432,1735497038788,-2167.50227199,0.00020771,7]
[347098434,1735497038798,-2167.5,0.00020771,7]
[347098445,1735497038900,-738.87832527,0.00020771,7]
[347098448,1735497038911,-738.87832527,0.00020771,7]
[347098450,1735497038920,-738.87832527,0.00020771,7]
[347098452,1735497038929,-738.87832527,0.00020771,7]
[347098454,1735497038939,-738.87832527,0.00020771,7]
[347098456,1735497038948,-738.87832527,0.00020771,7]
[347098458,1735497038957,-738.87832527,0.00020771,7]
[347098460,1735497038966,-738.87832527,0.00020771,7]
[347098462,1735497038975,-738.87832527,0.00020771,7]
[347098464,1735497038984,-738.87832527,0.00020771,7]
[347098466,1735497038993,-738.87832527,0.00020771,7]
[347098467,1735497039002,-738.87832527,0.00020771,7]
[347098469,1735497039012,-738.87832527,0.00020771,7]
[347098472,1735497039021,-738.87832527,0.00020771,7]
[347098473,1735497039030,-738.87832527,0.00020771,7]
[347098475,1735497039040,-738.87832527,0.00020771,7]
[347098477,1735497039049,-738.87832527,0.00020771,7]
[347098479,1735497039058,-738.87832527,0.00020771,7]
[347098481,1735497039067,-738.87832527,0.00020771,7]
[347098483,1735497039077,-738.87,0.00020771,7]
[347098486,1735497039087,-1108.31748791,0.00020771,7]
[347098487,1735497039096,-1108.31748791,0.00020771,7]
[347098490,1735497039106,-1108.31748791,0.00020771,7]
[347098492,1735497039115,-1108.31748791,0.00020771,7]
[347098494,1735497039124,-1108.31748791,0.00020771,7]
[347098496,1735497039134,-1108.31748791,0.00020771,7]
[347098498,1735497039143,-1108.31748791,0.00020771,7]
[347098500,1735497039152,-1108.31748791,0.00020771,7]
[347098502,1735497039162,-1108.31748791,0.00020771,7]
[347098504,1735497039171,-1108.31748791,0.00020771,7]
[347098506,1735497039181,-1108.31748791,0.00020771,7]
[347098508,1735497039192,-1108.31748791,0.00020771,7]
[347098510,1735497039202,-1108.31748791,0.00020771,7]
[347098511,1735497039211,-1108.31748791,0.00020771,7]
[347098514,1735497039221,-1108.31748791,0.00020771,7]
[347098516,1735497039231,-1108.31748791,0.00020771,7]
[347098517,1735497039240,-1108.31748791,0.00020771,7]
[347098519,1735497039248,-1108.31748791,0.00020771,7]
[347098521,1735497039258,-1108.31748791,0.00020771,7]
[347098523,1735497039269,-1108.31,0.00020771,7]
[347098525,1735497039278,-231.47,0.00020771,7]
[347098527,1735497039288,-173.60343847,0.00020771,7]
[347098529,1735497039297,-173.6,0.00020771,7]
[347098531,1735497039306,-163.96468302,0.00020771,2]
[347098533,1735497039317,-163.6744675,0.00020771,2]
[347098535,1735497039326,-238.0,0.000208,3]
[347098537,1735497039335,-2000.0,0.000208,2]
[347098539,1735497039346,-2000.0,0.000208,2]
[347098541,1735497039355,-202.050284,0.00020854,2]
[347098543,1735497039364,-151.0,0.00020854,2]
[347098545,1735497039373,-286.447581,0.00020854,2]
[347098547,1735497039383,-2563.71870258,0.00020855,2]
[347098549,1735497039392,-500.0,0.00020858,2]
[347098551,1735497039402,-151.0,0.00020864,2]
[347098553,1735497039411,-150.24,0.00020865,10]
[347098555,1735497039420,-150.24,0.00020865,10]
[347098557,1735497039429,-150.24,0.00020865,10]
[347098559,1735497039438,-150.24,0.00020865,10]
[347098561,1735497039447,-150.24,0.00020865,10]
[347098563,1735497039456,-199.76265831,0.00020865,10]
[347098565,1735497039465,-150.24,0.00020865,10]
[347098567,1735497039474,-500.0,0.00020865,10]
[347098569,1735497039483,-150.24,0.00020865,10]
[347098571,1735497039492,-150.24,0.00020865,2]
[347098573,1735497039502,-150.24,0.00020865,10]
[347098575,1735497039511,-150.24,0.00020865,10]
[347098577,1735497039521,-150.24,0.00020865,10]
[347098579,1735497039530,-150.24,0.00020865,2]
[347098581,1735497039540,-172.86541984,0.00020865,10]
[347098583,1735497039550,-499.0,0.0002087,2]
[347098585,1735497039559,-746.63654898,0.0002087,2]
[347098587,1735497039568,-19982.3361775,0.0002087,2]
[347098589,1735497039577,-441549.45949809,0.00020871,10]
[347098592,1735497039590,-1007.7,0.00020871,10]
[347098594,1735497039601,-68658.27767732,0.00020871,10]
[347098596,1735497039615,-4361.40553258,0.00020871,10]
[347098670,1735497040279,-518.41209753,0.00020871,10]
[347098680,1735497040362,-1042.61055036,0.00020871,10]
[347098682,1735497040373,-2344.61140531,0.00020871,10]
[347098684,1735497040385,-7147.37285962,0.00020871,10]
[347099016,1735497043361,-1127.19812462,0.00013293,2]
[347099018,1735497043370,-10545.04751632,0.00020871,10]
[347099359,1735497046379,-496.02431681,0.00020871,10]
[347099369,1735497046465,-248054.96677365,0.00020871,10]
[347099371,1735497046477,-365.86910035,0.00020871,10]
[347099374,1735497046491,-300.0,0.00020871,10]
[347099475,1735497257350,500.0,0.00020871,120]
[347099476,1735497546814,500.0,0.00020871,120]
[347099494,1735497945840,-500.0,0.00025506,60]
[347099495,1735497945871,-500.0,0.00025506,60]
[347099496,1735497945897,-500.0,0.00025506,60]
[347099497,1735497945923,-500.0,0.00025506,60]
[347099498,1735497945952,-500.0,0.00025506,60]
[347099499,1735497945978,-224.50622289,0.00025506,60]
[347099500,1735497946006,-897.57104874,0.00026,60]
[347099501,1735497946031,-386.10843649,0.000261,60]
[347099502,1735497946058,-629.88109483,0.00027,120]
[347099503,1735497946084,-381.98531,0.00027,120]
[347099504,1735497946111,-1500.0,0.00027,120]
[347099505,1735497946136,-2333.0,0.00027,120]
[347099506,1735497946162,-1000.0,0.00027,120]
[347099507,1735497946186,-207.63882,0.00027,120]
[347099508,1735497946211,-14121.94165701,0.00027,120]
[347099509,1735497946236,-3740.85593306,0.00027395,60]
[347099510,1735497946260,-400.74793596,0.00027397,60]
[347099511,1735497946286,-2332.619383,0.00027397,120]
[347099512,1735497946311,-381.98531,0.000276,120]
[347099513,1735497946337,-575.052,0.0002779,120]
[347099514,1735497946363,-1500.0,0.00028,120]
[347099515,1735497946387,-5164.75756255,0.00028,60]
[347099516,1735497946413,-420.6057046,0.00028,120]
[347099517,1735497946440,-381.98531,0.000282,120]
[347099518,1735497946468,-381.98531,0.000288,120]
[347099519,1735497946493,-46954.80454016,0.00028947,90]
[347099520,1735497946519,-575.125,0.0002899,120]
[347099521,1735497946544,-263.34393,0.00029,120]
[347099522,1735497946571,-150.5,0.0002927,120]
[347099523,1735497946597,-150.5,0.0002927,120]
[347099524,1735497946626,-150.5,0.0002927,120]
[347099525,1735497946656,-271.66,0.0002927,120]
[347099526,1735497946682,-150.5,0.0002928,120]
[347099527,1735497946709,-150.5,0.0002928,120]
[347099528,1735497946734,-150.5,0.0002928,120]
[347099529,1735497946760,-150.5,0.0002928,120]
[347099530,1735497946785,-150.5,0.0002929,120]
[347099531,1735497946809,-150.5,0.0002929,120]
[347099532,1735497946834,-150.5,0.0002929,120]
[347099533,1735497946859,-150.5,0.0002929,120]
[347099534,1735497946883,-240.26,0.0002929,120]
[347099535,1735497946908,-174.73,0.0002929,120]
[347099536,1735497946934,-381.98531,0.000294,120]
[347099537,1735497946960,-171.3010257,0.000299,120]
[347099538,1735497946985,-150.5,0.0002997,120]
[347099539,1735497947009,-150.5,0.0002998,120]
[347099540,1735497947033,-150.5,0.0002999,120]
[347099541,1735497947059,-2341.99734924,0.0003,60]
[347099542,1735497947085,-151.0,0.0003,120]
[347099543,1735497947110,-381.98531,0.0003,120]
[347099544,1735497947134,-200.12031322,0.0003,120]
[347099545,1735497947160,-422.48686,0.0003,120]
[347099546,1735497947186,-1500.0,0.0003,120]
[347099547,1735497947210,-226.0,0.0003,120]
[347099548,1735497947235,-151.0,0.0003,120]
[347099549,1735497947260,-5164.75756255,0.0003,120]
[347099550,1735497947285,-400.0,0.00030137,60]
[347099552,1735497986133,-5164.75756255,0.0003,120]
[347099553,1735497986159,-575.077,0.0003019,120]
[347099554,1735497986185,-263.34393,0.000304,120]
[347099555,1735497986212,-381.98531,0.000306,120]
[347099556,1735497986240,-1500.0,0.00031,120]
[347099557,1735497986265,-381.98531,0.000312,120]
[347099558,1735497986291,-151.0,0.00031205,120]
[347099559,1735497986318,-575.104,0.0003139,120]
[347099560,1735497986344,-151.0,0.00031397,120]
[347099561,1735497986372,-381.98538,0.000318,120]
[347099562,1735497986500,-263.34394,0.000318,120]
[347099563,1735497986527,-2332.619383,0.00031963,120]
[347099564,1735497986554,-1500.0,0.00032,120]
[347099565,1735497986579,-151.0,0.00032411,120]
[347099566,1735497986605,-159.662,0.000325,120]
[347099567,1735497986635,-159.663,0.000325,120]
[347099568,1735497986661,-159.663,0.000325,120]
[347099569,1735497986687,-159.663,0.000325,120]
[347099570,1735497986714,-575.111,0.0003259,120]
[347099571,1735497986740,-151.0,0.00032795,120]
[347099572,1735497986767,-750.0,0.00033,120]
[347099573,1735497986792,-151.0,0.00033616,120]
[347099574,1735497986818,-575.054,0.0003379,120]
[347099575,1735497986843,-8024.0,0.00034,120]
[347099576,1735497986869,-1500.0,0.00034,120]
[347099577,1735497986896,-2028.55534739,0.00034102,120]
[347099578,1735497986923,-151.0,0.00034192,120]
[347099579,1735497986948,-151.0,0.00034822,120]
[347099580,1735497986974,-575.117,0.0003499,120]
[347099581,1735497987000,-1000.0,0.00035,120]
[347099582,1735497987025,-8788.17362791,0.00035,120]
[347099583,1735497987049,-72347.89188936,0.00035,120]
[347099584,1735497987074,-200.0,0.00035,120]
[347099585,1735497987098,-351.11642,0.00035,120]
[347099586,1735497987123,-14547.39579578,0.00035,120]
[347099587,1735497987148,-229.83843,0.00035,120]
[347099588,1735497987172,-1079.55303369,0.00035,120]
[347099589,1735497987198,-35666.01223794,0.00035,120]
[347099590,1735497987224,-354605.68568155,0.00035,120]
[347099591,1735497987249,-124131.07309933,0.00035,120]
[347099592,1735497987274,-2383.08605058,0.00035,120]
[347099593,1735497987299,-4246.28769479,0.00035,120]
[347099594,1735497987324,-25468.0,0.00035,120]
[347099595,1735497987348,-5000.0,0.00035,120]
[347099596,1735497987374,-33000.0,0.00035,120]
[347099597,1735497987400,-13818.43482981,0.00035,120]
[347099598,1735497987426,-151.0,0.00035589,120]
[347099599,1735497987452,-1000.0,0.00036,120]
[347099600,1735497987477,-349.14773986,0.00036,120]
[347099601,1735497987503,-400.0,0.00036,120]
[347099602,1735497987531,-151.0,0.00036027,120]
[347099603,1735497987557,-2028.55534739,0.00036102,120]
[347099604,1735497987584,-575.054,0.0003619,120]
[347099605,1735497987611,-31317.60931244,0.000365,120]
[347099606,1735497987641,-2332.619383,0.0003653,120]
[347099607,1735497987668,-15000.0,0.000366,120]
[347099608,1735497987695,-151.0,0.00036986,120]
[347099609,1735497987722,-151.0,0.00037233,120]
[347099610,1735497987749,-575.138,0.0003739,120]
[347099611,1735497987775,-4166.10411434,0.00037484,120]
[347099612,1735497987801,-145837.04040954,0.00037885,120]
[347099613,1735497987827,-2028.55434739,0.00038102,120]
[347099614,1735497987851,-262.05901808,0.00038356,120]
[347099615,1735497987878,-151.0,0.00038384,120]
[347099616,1735497987905,-500.0,0.000384,120]
[347099617,1735497987931,-151.0,0.00038438,120]
[347099618,1735497987957,-575.069,0.0003859,120]
[347099619,1735497987984,-500.0,0.00039,120]
[347099620,1735497988009,-2034.0,0.00039,120]
[347099621,1735497988034,-5229.72544475,0.00039,120]
[347099622,1735497988061,-151.0,0.00039644,120]
[347099623,1735497988088,-151.0,0.00039781,120]
[347099624,1735497988116,-575.128,0.0003979,120]
[347099625,1735497988141,-10000.0,0.000399,120]
[347099626,1735497988166,-10000.0,0.000399,120]
[347099627,1735497988193,-500.0,0.0004,120]
[347099628,1735497988219,-2691.00428878,0.0004,120]
[347099629,1735497988244,-226.1319647,0.0004,120]
[347099630,1735497988269,-200.0,0.0004,120]
[347099631,1735497988295,-33982.82067605,0.0004,120]
[347099636,1735497999988,-81394.61316814,0.0004,120]
[347099637,1735498000014,-4047.99,0.0004,120]
[347099638,1735498000039,-259321.38012721,0.0004,120]
[347099639,1735498000064,-10605.79000147,0.0004,120]
[347099640,1735498000088,-227396.93020369,0.0004,120]
[347099641,1735498000112,-500.0,0.0004,120]
[347099642,1735498000137,-525.4893485,0.0004,120]
[347099643,1735498000163,-33000.0,0.0004,120]
[347099644,1735498000190,-2489.69612925,0.00040739,120]
[347099645,1735498000216,-151.0,0.00040849,120]
[347099646,1735498000244,-575.104,0.0004099,120]
[347099647,1735498000269,-2000.0,0.00041,120]
[347099648,1735498000294,-28326.57132373,0.00041,120]
[347099650,1735498097554,108.35474716,0.00025645,120]
[347099651,1735498106228,2001.37104932,0.00025,120]
[347099657,1735498147913,500.0,0.00020873,120]
[347099691,1735498232635,-400.0,0.00013973,2]
[347099693,1735498232644,-500.0,0.00016438,4]
[347099695,1735498232654,-150.0,0.000173,2]
[347099697,1735498232663,-394.0,0.000173,2]
[347099699,1735498232672,-188.246027,0.00019136,2]
[347099700,1735498232682,-163.688321,0.00019178,2]
[347099702,1735498232691,-5164.75756255,0.00019498,2]
[347099704,1735498232700,-576.302,0.0001983,2]
[347099706,1735498232709,-352.2050668,0.00019918,2]
[347099708,1735498232718,-157.3660874,0.00019918,2]
[347099710,1735498232727,-166.369,0.0002,2]
[347099713,1735498232736,-163.6744675,0.0002,2]
[347099716,1735498232745,-300.0,0.0002,8]
[347099719,1735498232754,-153.0,0.00020055,2]
[347099722,1735498232764,-153.0,0.00020055,2]
[347099725,1735498232773,-153.0,0.00020055,2]
[347099727,1735498232782,-172.058,0.00020086,2]
[347099730,1735498232791,-286.66306944,0.00020099,2]
[347099733,1735498232801,-500.0,0.00020099,2]
[347099736,1735498232810,-500.0,0.00020099,2]
[347099739,1735498232820,-466.60498969,0.00020099,2]
[347099742,1735498232829,-500.0,0.00020099,2]
[347099745,1735498232839,-500.0,0.00020099,2]
[347099748,1735498232848,-500.0,0.00020099,2]
[347099751,1735498232858,-500.0,0.00020099,2]
[347099754,1735498232867,-500.0,0.00020099,2]
[347099756,1735498232876,-500.98052566,0.000201,2]
[347099758,1735498232886,-503.128924,0.000201,2]
[347099760,1735498232896,-501.88320923,0.000201,2]
[347099763,1735498232906,-502.94030647,0.000201,2]
[347099765,1735498232915,-500.0,0.000201,2]
[347099767,1735498232925,-502.18538924,0.000201,2]
[347099769,1735498232934,-500.0,0.000201,2]
[347099771,1735498232944,-500.0,0.000201,2]
[347099773,1735498232953,-500.0,0.000201,2]
[347099775,1735498232963,-500.0,0.000201,2]
[347099777,1735498232972,-500.0,0.000201,2]